bitfinex-derivatives/quotes_BNBF0:USTF0_20250807
["timestamp","ask_amount","ask_price","bid_price","bid_amount"]
[1754584813924,0.85952111,775.69,774.98,0.86523801]
[1754584814220,0.85942318,775.68,774.97,0.86523801]
[1754584814524,0.85942318,775.67,774.97,0.86523801]
[1754584814722,0.85941044,775.66,774.97,0.86523801]
[1754584814923,0.85941044,775.65,774.97,0.86523801]
[1754584815120,0.85941044,775.64,774.96,0.86523801]
[1754584815320,0.85941044,775.63,774.96,0.86523801]
[1754584815523,0.85941044,775.62,774.96,0.86523801]
[1754584815724,0.85941044,775.61,774.96,0.86523801]
[1754584815925,0.85941044,775.6,774.96,0.86523801]
[1754584816126,0.85941044,775.59,774.95,0.86523801]
[1754584816322,0.85941044,775.58,774.95,0.86523801]
[1754584816522,0.85941044,775.57,774.95,0.86523801]
[1754584816826,0.85941044,775.56,774.95,0.86523801]
[1754584817125,0.85941044,775.55,774.94,0.86523801]
[1754584817323,0.85941044,775.54,774.94,0.86523801]
[1754584817522,0.85912564,775.53,774.95,0.86523801]
[1754584817822,0.86903809,775.73,774.95,0.86523801]
[1754584818023,0.85912564,775.72,774.95,0.86523801]
[1754584818222,0.85912564,775.71,774.94,0.86523801]
[1754584818426,0.85912564,775.7,774.94,0.86523801]
[1754584818620,0.85912564,775.69,774.94,0.86523801]
[1754584818822,0.85912564,775.68,774.94,0.86523801]
[1754584819025,0.85912564,775.67,774.94,0.86523801]
[1754584819325,0.85912564,775.66,774.94,0.86523801]
[1754584819523,0.85897345,775.65,774.94,0.86523801]
[1754584819724,0.85897345,775.64,774.94,0.86523801]
[1754584820026,0.85897345,775.63,774.93,0.86523801]
[1754584820222,0.776,775.67,774.93,0.86523801]
[1754584820223,0.85897345,775.62,774.93,0.86523801]
[1754584820426,0.85897345,775.61,774.93,0.86523801]
[1754584820626,0.85897345,775.61,774.94,0.86523801]
[1754584820825,0.85897345,775.6,774.94,0.86523801]
[1754584821024,0.85897345,775.59,774.94,0.86523801]
[1754584821225,0.85897345,775.58,774.93,0.86523801]
[1754584821529,0.85897345,775.57,774.92,0.86523801]
[1754584821729,0.85897345,775.56,774.92,0.86523801]
[1754584822031,0.85897345,775.55,774.91,0.86523801]
[1754584822229,0.85897345,775.55,774.75,0.22447992]
[1754584822230,0.776,775.67,774.9,0.86523801]
[1754584822526,0.85874992,775.66,774.9,0.86523801]
[1754584822826,0.85874992,775.65,774.9,0.86523801]
[1754584823025,0.85874992,775.64,774.9,0.86523801]
[1754584823231,0.85874992,775.63,774.89,0.86523801]
[1754584823427,0.85874992,775.62,774.88,0.86523801]
[1754584823627,0.85874992,775.61,774.86,0.86523801]
[1754584823826,0.85874992,775.6,774.81,0.86523801]
[1754584824026,0.85874992,775.59,774.81,0.86523801]
[1754584824231,0.776,775.67,774.81,0.86523801]
[1754584824232,0.85874992,775.58,774.81,0.86523801]
[1754584824432,0.85874992,775.57,774.81,0.86523801]
[1754584824628,0.85874992,775.56,774.82,0.86523801]
[1754584824832,0.85874992,775.55,774.82,0.86523801]
[1754584825132,0.85874992,775.54,774.81,0.86523801]
[1754584825334,0.85874992,775.53,774.81,0.86523801]
[1754584825533,0.85874992,775.52,774.81,0.86523801]
[1754584825732,0.85874992,775.51,774.81,0.86523801]
[1754584825930,0.85874992,775.5,774.81,0.86523801]
[1754584826135,0.85874992,775.49,774.8,0.86523801]
[1754584826333,0.85874992,775.48,774.8,0.86523801]
[1754584826531,0.85874992,775.47,774.8,0.86523801]
[1754584826735,0.85874992,775.46,774.81,0.86523801]
[1754584826932,0.776,775.67,774.81,0.86523801]
[1754584827137,0.85832583,775.66,774.8,0.86523801]
[1754584827336,0.85832583,775.65,774.81,0.86523801]
[1754584827537,0.85832583,775.64,774.81,0.86523801]
[1754584827736,0.85832583,775.63,774.81,0.86523801]
[1754584828035,0.85832583,775.62,774.81,0.86523801]
[1754584828258,0.85832583,775.61,774.81,0.86523801]
[1754584828433,0.776,775.67,774.81,0.86523801]
[1754584828434,0.85832583,775.6,774.81,0.86523801]
[1754584828637,0.85832583,775.59,774.75,0.22447992]
[1754584828934,0.85832583,775.58,774.75,0.22447992]
[1754584829238,0.85832583,775.57,774.75,0.22447992]
[1754584829441,0.85832583,775.56,774.75,0.22447992]
[1754584829639,0.85832583,775.55,774.75,0.22447992]
[1754584829843,0.85832583,775.54,774.75,0.22447992]
[1754584830036,0.85832583,775.53,774.75,0.22447992]
[1754584830233,0.85832583,775.52,774.75,0.22447992]
[1754584830437,0.85832583,775.51,774.75,0.22447992]
[1754584830741,0.85832583,775.5,774.75,0.22447992]
[1754584831040,0.85832583,775.49,774.75,0.22447992]
[1754584831237,0.85832583,775.48,774.75,0.22447992]
[1754584831441,0.8578012,775.47,774.75,0.22447992]
[1754584831641,0.8578012,775.46,774.75,0.22447992]
[1754584831941,0.8578012,775.45,774.75,0.22447992]
[1754584832241,0.776,775.67,774.75,0.22447992]
[1754584832242,0.8578012,775.44,774.75,0.22447992]
[1754584832440,0.8578012,775.43,774.75,0.22447992]
[1754584832638,0.8578012,775.42,774.75,0.22447992]
[1754584832842,0.8578012,775.41,774.75,0.22447992]
[1754584833042,0.8578012,775.4,774.75,0.22447992]
[1754584833245,0.8578012,775.39,774.75,0.22447992]
[1754584833443,0.8578012,775.38,774.75,0.22447992]
[1754584833644,0.8578012,775.37,774.75,0.22447992]
[1754584833845,0.8578012,775.36,774.75,0.22447992]
[1754584834040,0.8578012,775.35,774.75,0.22447992]
[1754584834245,0.991,775.43,774.75,0.22447992]
[1754584834446,0.85719706,775.42,774.75,0.22447992]
[1754584834646,0.85719706,775.41,774.75,0.22447992]
[1754584834842,0.991,775.43,774.75,0.22447992]
[1754584834843,0.85719706,775.4,774.75,0.22447992]
[1754584835042,0.85719706,775.39,774.75,0.22447992]
[1754584835344,0.85719706,775.38,774.75,0.22447992]
[1754584835545,0.85719706,775.37,774.75,0.22447992]
[1754584835747,0.85719706,775.36,774.75,0.22447992]
[1754584835945,0.85719706,775.35,774.75,0.22447992]
[1754584836144,0.85719706,775.34,774.75,0.22447992]
[1754584836347,0.85719706,775.33,774.75,0.22447992]
[1754584836648,0.85719706,775.32,774.75,0.22447992]
[1754584836847,0.85719706,775.31,774.75,0.22447992]
[1754584837048,0.85719706,775.3,774.75,0.22447992]
[1754584837243,0.85719706,775.29,774.75,0.22447992]
[1754584837447,0.85719706,775.28,774.75,0.22447992]
[1754584837647,0.85719706,775.27,774.75,0.22447992]
[1754584837845,0.85719706,775.26,774.75,0.22447992]
[1754584838048,0.991,775.43,774.75,0.22447992]
[1754584838248,0.85649421,775.42,774.75,0.22447992]
[1754584838448,0.85649421,775.41,774.75,0.22447992]
[1754584838648,0.85649421,775.4,774.75,0.22447992]
[1754584838847,0.85649421,775.39,774.75,0.22447992]
[1754584839048,0.85649421,775.38,774.75,0.22447992]
[1754584839347,0.991,775.43,774.75,0.22447992]
[1754584839348,0.85649421,775.37,774.75,0.22447992]
[1754584839549,0.85649421,775.36,774.75,0.22447992]
[1754584839749,0.85649421,775.35,774.75,0.22447992]
[1754584839948,0.85649421,775.34,774.75,0.22447992]
[1754584840353,0.85623644,775.33,774.75,0.22447992]
[1754584840554,0.85623644,775.32,774.75,0.22447992]
[1754584840754,0.85623644,775.31,774.75,0.22447992]
[1754584840954,0.85623644,775.3,774.75,0.22447992]
[1754584841153,0.85623644,775.29,774.75,0.22447992]
[1754584841355,0.85623644,775.28,774.75,0.22447992]
[1754584841654,0.85623644,775.27,774.75,0.22447992]
[1754584841954,0.991,775.43,774.75,0.22447992]
[1754584842152,0.85624383,775.42,774.75,0.22447992]
[1754584842352,0.85624383,775.41,774.75,0.22447992]
[1754584842550,0.85624383,775.4,774.75,0.22447992]
[1754584842849,0.85624383,775.39,774.75,0.22447992]
[1754584843049,0.85624383,775.38,774.75,0.22447992]
[1754584843255,0.85624383,775.37,774.75,0.22447992]
[1754584843453,0.85624383,775.36,774.75,0.22447992]
[1754584843652,0.85624383,775.35,774.75,0.22447992]
[1754584843850,0.85624383,775.34,774.75,0.22447992]
[1754584844048,0.991,775.43,774.75,0.22447992]
[1754584844049,0.85624383,775.33,774.75,0.22447992]
[1754584844252,0.85624383,775.32,774.75,0.22447992]
[1754584844450,0.85624383,775.31,774.75,0.22447992]
[1754584844651,0.85624383,775.3,774.75,0.22447992]
[1754584844854,0.85624383,775.29,774.75,0.22447992]
[1754584845056,0.85624383,775.28,774.75,0.22447992]
[1754584845251,0.85624383,775.27,774.75,0.22447992]
[1754584845456,0.991,775.43,774.75,0.22447992]
[1754584845655,0.8560529,775.42,774.75,0.22447992]
[1754584845852,0.8560529,775.41,774.75,0.22447992]
[1754584846056,0.85606248,775.4,774.75,0.22447992]
[1754584846251,0.85606248,775.39,774.75,0.22447992]
[1754584846456,0.85606248,775.38,774.75,0.22447992]
[1754584846657,0.85606248,775.37,774.75,0.22447992]
[1754584846853,0.85606248,775.36,774.75,0.22447992]
[1754584847057,0.85606248,775.35,774.75,0.22447992]
[1754584847254,0.783,775.39,774.75,0.22447992]
[1754584849961,0.783,775.39,774.75,1.08971793]
[1754584850155,0.783,775.39,774.76,0.86523801]
[1754584850356,0.99,775.38,774.76,0.86523801]
[1754584851956,0.99,775.38,774.75,1.08971793]
[1754584852161,0.99,775.38,774.76,0.86523801]
[1754584852761,0.99,775.38,774.75,1.08971793]
[1754584855260,0.99,775.38,774.76,0.86523801]
[1754584856365,0.99,775.38,774.77,0.86523801]
[1754584856660,0.99,775.38,774.78,0.86523801]
[1754584857665,0.99,775.38,774.77,0.86523801]
[1754584858263,0.99,775.38,774.78,0.86523801]
[1754584859267,0.99,775.38,774.75,0.22447992]
[1754584859268,0.99,775.38,774.79,0.86523801]
[1754584860664,0.99,775.38,774.78,0.86523801]
[1754584860868,0.99,775.38,774.77,0.86523801]
[1754584861066,0.99,775.38,774.75,1.08971793]
[1754584861368,0.99,775.38,774.78,0.86523801]
[1754584861669,0.99,775.38,774.79,0.86523801]
[1754584862165,0.99,775.38,774.8,0.86523801]
[1754584862664,0.99,775.38,774.79,0.86523801]
[1754584863169,0.99,775.38,774.81,0.86523801]
[1754584863368,0.99,775.38,774.8,0.86523801]
[1754584864067,0.99,775.38,774.81,0.86523801]
[1754584865173,0.99,775.38,774.82,0.86523801]
[1754584866170,0.99,775.38,774.83,0.86523801]
[1754584867173,0.99,775.38,774.84,0.86523801]
[1754584867572,0.99,775.38,774.85,0.86523801]
[1754584868073,0.99,775.38,774.86,0.86523801]
[1754584868270,0.99,775.38,774.85,0.86523801]
[1754584868770,0.85915809,775.37,774.84,0.86523801]
[1754584868974,0.99,775.38,774.84,0.86523801]
[1754584869270,0.8591682,775.37,774.85,0.86523801]
[1754584869473,0.8591682,775.36,774.85,0.86523801]
[1754584869674,0.99,775.38,774.85,0.86523801]
[1754584869969,0.99,775.38,774.8,0.86523801]
[1754584870176,0.99,775.38,774.78,0.86523801]
[1754584870775,0.99,775.38,774.79,0.86523801]
[1754584871276,0.99,775.38,774.81,0.86523801]
[1754584874275,0.99,775.38,774.82,0.86523801]
[1754584874973,1.127,775.37,774.82,0.86523801]
[1754584876978,1.127,775.37,774.81,0.86523801]
[1754584878074,1.127,775.37,774.8,0.86523801]
[1754584878377,1.127,775.37,774.76,0.86523801]
[1754584878574,0.85955835,775.36,774.77,0.86523801]
[1754584878877,0.85955835,775.35,774.76,0.86523801]
[1754584879174,0.85955835,775.34,774.72,0.86523801]
[1754584879377,1.72859644,775.33,774.65,0.86523801]
[1754584879578,0.85955835,775.32,774.62,0.86523801]
[1754584879778,0.86903809,775.3,774.63,0.86523801]
[1754584879978,0.86903809,775.26,774.58,0.86523801]
[1754584880274,1.72859644,775.25,774.57,0.86523801]
[1754584880478,0.85955835,775.24,774.55,0.86523801]
[1754584880674,0.85955835,775.23,774.52,0.86523801]
[1754584880973,0.86903809,775.17,774.52,0.86523801]
[1754584881180,0.86903809,775.14,774.36,0.86523801]
[1754584881380,0.86903809,775.08,774.31,0.86523801]
[1754584881576,0.85899376,775.07,774.31,0.86523801]
[1754584881875,0.85899376,775.06,774.29,0.86523801]
[1754584882379,0.85899376,775.05,774.22,0.86523801]
[1754584882581,0.86903809,774.99,774.15,0.86523801]
[1754584882782,0.85899376,774.98,774.15,0.86523801]
[1754584883080,0.85899376,774.97,774.15,0.86523801]
[1754584883280,0.85899376,774.96,774.12,0.22461539]
[1754584883479,0.86903809,775.02,774.12,0.22461539]
[1754584883675,0.85784677,775.01,774.12,0.22461539]
[1754584883881,0.85784677,775.0,774.12,0.22461539]
[1754584884182,0.85781563,774.99,774.12,0.22461539]
[1754584884382,0.85781563,774.98,774.12,0.22461539]
[1754584884579,0.85781563,774.97,774.12,0.22461539]
[1754584884783,0.85781563,774.96,774.12,0.22461539]
[1754584884981,0.85781563,774.95,774.12,0.22461539]
[1754584885283,0.85781563,774.94,774.12,0.22461539]
[1754584885482,0.86903809,775.06,774.12,0.22461539]
[1754584885483,0.85781563,774.93,774.12,0.22461539]
[1754584885683,0.85781563,774.92,774.12,0.22461539]
[1754584885979,0.85781563,774.91,774.12,0.22461539]
[1754584886185,0.85781563,774.9,774.12,0.22461539]
[1754584886381,0.85781563,774.89,774.12,0.22461539]
[1754584886586,0.85781563,774.88,774.12,0.22461539]
[1754584886786,0.85781563,774.87,774.12,0.22461539]
[1754584886986,0.85781563,774.86,774.12,0.22461539]
[1754584887184,0.85781563,774.85,774.12,0.22461539]
[1754584887383,0.85781563,774.84,774.12,0.22461539]
[1754584887587,0.85781563,774.83,774.12,0.22461539]
[1754584887789,0.85781563,774.82,774.12,0.22461539]
[1754584887988,0.85781563,774.81,774.12,0.22461539]
[1754584888187,0.85781563,774.8,774.12,0.22461539]
[1754584888484,0.85781563,774.79,774.12,0.22461539]
[1754584888686,0.86903809,775.1,774.12,0.22461539]
[1754584888886,0.86903809,775.08,774.12,0.22461539]
[1754584889086,0.8549528,775.07,774.12,0.22461539]
[1754584889386,0.8549528,775.07,772.76,2.861232]
[1754584889387,0.8549528,775.06,773.86,0.86523801]
[1754584889590,0.8549528,775.05,774.01,0.2246705]
[1754584889890,0.8549528,775.04,774.01,0.2246705]
[1754584890091,0.8549528,775.03,774.01,0.2246705]
[1754584890292,0.8549528,775.02,774.01,0.2246705]
[1754584890487,0.8549528,775.01,774.01,0.2246705]
[1754584890691,0.8549528,775.0,774.01,0.2246705]
[1754584890892,0.8549528,774.99,774.01,0.2246705]
[1754584891088,0.8549528,774.98,774.01,0.2246705]
[1754584891294,0.8549528,774.97,774.01,0.2246705]
[1754584891493,0.8549528,774.96,774.01,0.2246705]
[1754584891792,0.8549528,774.95,774.01,0.2246705]
[1754584891990,0.8549528,774.94,774.01,0.2246705]
[1754584892191,0.8549528,774.93,774.01,0.2246705]
[1754584892390,0.86903809,775.07,774.01,0.2246705]
[1754584892592,0.85348,775.06,774.01,0.2246705]
[1754584892891,0.85348,775.05,774.01,0.2246705]
[1754584893092,0.85348,775.04,774.01,0.2246705]
[1754584893290,0.85348,775.03,773.7,0.86523801]
[1754584893487,1.72251809,775.02,773.82,0.22470894]
[1754584893689,0.86903809,774.9,773.82,0.22470894]
[1754584893888,0.85348,774.89,773.82,0.22470894]
[1754584894193,0.85348,774.88,773.82,0.22470894]
[1754584894392,0.85348,774.87,773.82,0.22470894]
[1754584894586,0.85348,774.86,773.82,0.22470894]
[1754584894787,0.85348,774.85,773.82,0.22470894]
[1754584894991,0.85348,774.84,773.82,0.22470894]
[1754584895191,0.85348,774.83,773.82,0.22470894]
[1754584895389,0.85348,774.82,773.82,0.22470894]
[1754584895589,0.85348,774.81,773.82,0.22470894]
[1754584895893,0.85348,774.8,773.82,0.22470894]
[1754584896189,0.85348,774.79,773.82,0.22470894]
[1754584896386,0.85348,774.78,773.82,0.22470894]
[1754584896589,0.85348,774.77,773.82,0.22470894]
[1754584896789,0.85348,774.76,773.82,0.22470894]
[1754584896989,0.86903809,775.06,773.82,0.22470894]
[1754584896990,0.85348,774.75,773.82,0.22470894]
[1754584897289,0.85348,774.74,773.82,0.22470894]
[1754584897492,0.85348,774.73,773.82,0.22470894]
[1754584897794,0.85348,774.72,773.82,0.22470894]
[1754584897990,0.85348,774.71,773.48,0.86523801]
[1754584898189,0.85348,774.7,773.61,0.22477934]
[1754584898391,0.86903809,774.66,773.61,0.22477934]
[1754584898592,0.86903809,774.64,773.61,0.22477934]
[1754584898893,0.85348,774.63,773.61,0.22477934]
[1754584899189,0.85348,774.62,773.11,0.86523801]
[1754584899387,0.85348,774.61,773.52,0.22482218]
[1754584899789,0.85348,774.6,773.52,0.22482218]
[1754584899987,0.86903809,774.73,773.52,0.22482218]
[1754584900192,0.85077856,774.72,773.52,0.22482218]
[1754584900389,0.85077856,774.71,773.52,0.22482218]
[1754584900594,0.85077856,774.7,773.52,0.22482218]
[1754584900893,0.85077856,774.69,773.52,0.22482218]
[1754584901090,0.85077856,774.68,773.52,0.22482218]
[1754584901490,0.85021797,774.67,773.52,0.22482218]
[1754584901690,0.85021797,774.66,773.52,0.22482218]
[1754584901890,0.85021797,774.65,773.52,0.22482218]
[1754584902195,0.85021797,774.64,772.96,0.86523801]
[1754584902391,0.84970924,774.63,772.95,0.86523801]
[1754584902590,0.84970924,774.62,773.4,0.2248476]
[1754584902889,1.88370924,774.61,773.4,0.2248476]
[1754584903194,0.84970924,774.6,773.4,0.2248476]
[1754584904095,1.034,774.61,773.4,0.2248476]
[1754584904799,0.84914204,774.6,773.4,0.2248476]
[1754584904996,0.84914204,774.59,773.4,0.2248476]
[1754584905296,0.84914204,774.58,773.4,0.2248476]
[1754584905496,0.84914204,774.57,773.4,0.2248476]
[1754584905792,0.84914204,774.56,773.4,0.2248476]
[1754584905996,0.84914204,774.55,773.4,0.2248476]
[1754584906195,0.84914204,774.54,773.4,0.2248476]
[1754584906396,0.84914204,774.53,773.4,0.2248476]
[1754584906598,0.84914204,774.52,773.4,0.2248476]
[1754584906792,1.034,774.61,773.4,0.2248476]
[1754584907097,0.84843579,774.6,773.4,0.2248476]
[1754584907295,0.84843579,774.59,773.4,0.2248476]
[1754584907494,0.84843579,774.58,773.4,0.2248476]
[1754584907696,0.84843579,774.57,773.4,0.2248476]
[1754584907994,0.84843579,774.56,773.4,0.2248476]
[1754584908195,0.84843579,774.55,773.4,0.2248476]
[1754584908394,0.84843579,774.54,773.4,0.2248476]
[1754584908593,1.034,774.61,773.4,0.2248476]
[1754584908795,0.84795095,774.6,773.4,0.2248476]
[1754584909096,0.84795095,774.59,773.4,0.2248476]
[1754584909297,0.84795095,774.58,772.61,0.86523801]
[1754584909593,0.84795095,774.57,773.31,0.22489119]
[1754584909798,0.84795095,774.56,772.62,0.86523801]
[1754584909995,0.84795095,774.55,773.31,0.22489555]
[1754584910194,0.84755671,774.54,773.31,0.22489555]
[1754584910398,1.034,774.61,772.54,0.86523801]
[1754584910693,0.84735749,774.6,772.55,0.86523801]
[1754584910892,0.84735749,774.59,772.54,0.86523801]
[1754584911098,0.84735749,774.58,772.46,0.86523801]
[1754584911296,0.84735749,774.57,772.46,0.86523801]
[1754584911497,0.84735749,774.56,772.98,0.2249159]
[1754584911800,0.84735749,774.55,772.98,0.2249159]
[1754584912000,0.84735749,774.54,772.98,0.2249159]
[1754584912198,0.84735749,774.53,772.98,0.2249159]
[1754584912398,0.84735749,774.52,772.98,0.2249159]
[1754584912599,0.84735749,774.51,772.98,0.2249159]
[1754584912798,0.84735749,774.5,772.98,0.2249159]
[1754584913002,0.84735749,774.49,772.98,0.2249159]
[1754584913199,0.84614571,774.48,772.98,0.2249159]
[1754584913501,0.84614571,774.47,772.98,0.2249159]
[1754584913800,0.84614571,774.46,772.98,0.2249159]
[1754584914004,0.84614571,774.45,772.98,0.2249159]
[1754584914304,1.034,774.61,772.98,0.2249159]
[1754584914305,0.84614571,774.44,772.98,0.2249159]
[1754584914500,0.84614571,774.43,772.98,0.2249159]
[1754584914705,0.84614571,774.42,772.98,0.2249159]
[1754584914906,0.84614571,774.41,772.98,0.2249159]
[1754584915106,0.84614571,774.4,772.98,0.2249159]
[1754584915305,0.84614571,774.39,772.98,0.2249159]
[1754584915504,0.84614571,774.38,772.98,0.2249159]
[1754584915701,0.84614571,774.37,772.98,0.2249159]
[1754584915906,0.84614571,774.36,772.98,0.2249159]
[1754584916104,0.84614571,774.35,772.98,0.2249159]
[1754584916405,0.84614571,774.34,772.98,0.2249159]
[1754584916602,0.84614571,774.33,772.98,0.2249159]
[1754584916800,0.84614571,774.32,772.98,0.2249159]
[1754584917002,0.84614571,774.31,772.98,0.2249159]
[1754584917308,0.84614571,774.3,772.98,0.2249159]
[1754584917606,0.84614571,774.29,772.98,0.2249159]
[1754584917805,0.86903809,774.63,772.98,0.2249159]
[1754584917806,0.84614571,774.28,772.98,0.2249159]
[1754584918005,0.84614571,774.27,772.98,0.2249159]
[1754584918305,0.84614571,774.26,772.98,0.2249159]
[1754584918501,0.84614571,774.25,772.98,0.2249159]
[1754584918702,0.84614571,774.24,772.98,0.2249159]
[1754584918904,0.84614571,774.23,772.98,0.2249159]
[1754584919106,0.84387898,774.22,772.98,0.2249159]
[1754584919303,0.84387898,774.21,772.98,0.2249159]
[1754584919500,0.86903809,774.6,772.98,0.2249159]
[1754584919501,0.84387898,774.2,772.98,0.2249159]
[1754584919706,0.84387898,774.19,772.98,0.2249159]
[1754584919902,0.84387898,774.18,772.98,0.2249159]
[1754584920100,0.84387898,774.17,772.98,0.2249159]
[1754584920301,0.84387898,774.16,772.98,0.2249159]
[1754584920503,0.84387898,774.15,772.98,0.2249159]
[1754584920702,0.84387898,774.14,772.98,0.2249159]
[1754584920905,0.84387898,774.13,772.98,0.2249159]
[1754584921105,0.84387898,774.12,772.98,0.2249159]
[1754584921305,0.84387898,774.11,772.98,0.2249159]
[1754584921504,0.84387898,774.1,772.98,0.2249159]
[1754584921707,0.8430902,774.09,772.98,0.2249159]
[1754584922009,1.058,774.15,772.98,0.2249159]
[1754584922310,0.8428549,774.14,772.98,0.2249159]
[1754584922510,1.058,774.15,772.98,0.2249159]
[1754584923107,0.84272656,774.14,772.98,0.2249159]
[1754584923308,0.84272656,774.13,772.98,0.2249159]
[1754584923512,0.84272656,774.12,772.98,0.2249159]
[1754584923710,0.84272656,774.11,772.98,0.2249159]
[1754584923913,0.84272656,774.1,772.98,0.2249159]
[1754584924109,0.84272656,774.09,772.98,0.2249159]
[1754584924311,0.84272656,774.08,772.98,0.2249159]
[1754584924511,0.84272656,774.07,772.98,0.2249159]
[1754584924808,1.058,774.15,772.98,0.2249159]
[1754584924809,0.84272656,774.06,772.98,0.2249159]
[1754584925009,0.84272656,774.05,772.98,0.2249159]
[1754584925311,0.84272656,774.04,772.98,0.2249159]
[1754584925509,0.84272656,774.03,772.98,0.2249159]
[1754584925708,0.84272656,774.02,772.98,0.2249159]
[1754584925909,0.84272656,774.01,772.98,0.2249159]
[1754584926109,0.84272656,774.0,772.98,0.2249159]
[1754584926414,0.84272656,773.99,772.98,0.2249159]
[1754584926613,0.84272656,773.98,772.98,0.2249159]
[1754584926911,0.84112067,773.97,772.98,0.2249159]
[1754584927111,1.058,774.15,772.98,0.2249159]
[1754584927417,0.84071115,774.14,772.98,0.2249159]
[1754584927611,0.84071115,774.13,772.98,0.2249159]
[1754584927916,1.058,774.15,772.98,0.2249159]
[1754584928112,0.84088809,774.14,772.98,0.2249159]
[1754584928318,0.84088809,774.13,772.98,0.2249159]
[1754584928612,0.84088809,774.12,772.98,0.2249159]
[1754584928916,0.84088809,774.11,772.98,0.2249159]
[1754584929116,0.84088809,774.1,772.98,0.2249159]
[1754584929313,0.84088809,774.09,772.98,0.2249159]
[1754584929525,0.84088809,774.08,772.98,0.2249159]
[1754584929813,0.84088809,774.07,772.98,0.2249159]
[1754584930017,1.058,774.15,772.98,0.2249159]
[1754584930217,0.84058062,774.14,772.98,0.2249159]
[1754584930413,1.058,774.15,772.98,0.2249159]
[1754584930414,0.84058062,774.13,772.98,0.2249159]
[1754584930611,0.84058062,774.12,772.98,0.2249159]
[1754584930812,0.84058062,774.11,772.98,0.2249159]
[1754584931012,0.84058062,774.1,772.98,0.2249159]
[1754584931213,0.84058062,774.09,772.98,0.2249159]
[1754584931413,0.84058062,774.08,772.98,0.2249159]
[1754584931616,0.83952835,774.07,772.98,0.2249159]
[1754584931813,0.83952835,774.06,772.98,0.2249159]
[1754584932011,0.83952835,774.05,772.98,0.2249159]
[1754584932218,0.83960914,774.04,772.98,0.2249159]
[1754584932412,0.83960914,774.03,772.98,0.2249159]
[1754584932612,0.965,774.04,772.98,0.2249159]
[1754584932818,0.83956023,774.03,772.98,0.2249159]
[1754584933116,0.83956023,774.02,772.98,0.2249159]
[1754584933316,0.83971253,774.01,772.98,0.2249159]
[1754584933614,0.83969982,774.0,772.98,0.2249159]
[1754584933818,0.965,774.04,772.98,0.2249159]
[1754584934019,0.83968706,774.03,772.98,0.2249159]
[1754584934314,0.83968706,774.02,772.98,0.2249159]
[1754584934513,0.83968706,774.01,772.98,0.2249159]
[1754584934717,0.83968706,774.0,772.98,0.2249159]
[1754584935017,0.83968706,773.99,772.98,0.2249159]
[1754584935218,0.83968706,773.98,772.98,0.2249159]
[1754584935518,0.83968706,773.97,772.98,0.2249159]
[1754584935818,0.965,774.04,772.98,0.2249159]
[1754584936017,0.84010447,774.03,772.98,0.2249159]
[1754584936220,0.84010447,774.02,772.98,0.2249159]
[1754584936518,0.84010447,774.01,772.98,0.2249159]
[1754584936817,0.84010447,774.0,772.98,0.2249159]
[1754584937020,0.84010447,773.99,772.98,0.2249159]
[1754584937212,0.965,774.04,772.98,0.2249159]
[1754584937213,0.84010447,773.98,772.98,0.2249159]
[1754584937414,0.84010447,773.97,772.98,0.2249159]
[1754584937718,0.84010447,773.96,772.98,0.2249159]
[1754584937917,0.84010447,773.95,772.98,0.2249159]
[1754584938118,0.84010447,773.94,772.98,0.2249159]
[1754584938321,0.84010447,773.93,772.98,0.2249159]
[1754584938520,0.84010447,773.92,772.98,0.2249159]
[1754584938820,0.84010447,773.91,772.98,0.2249159]
[1754584939015,0.965,774.04,772.98,0.2249159]
[1754584939219,0.84118315,774.03,772.98,0.2249159]
[1754584939417,0.84118315,774.02,772.98,0.2249159]
[1754584939616,0.965,774.04,772.98,0.2249159]
[1754584939617,0.84118315,774.01,772.98,0.2249159]
[1754584939816,0.84118315,774.0,772.98,0.2249159]
[1754584940120,0.84118315,773.99,772.98,0.2249159]
[1754584940417,0.84118315,773.98,772.98,0.2249159]
[1754584940621,0.84118315,773.97,772.98,0.2249159]
[1754584940818,0.84118315,773.96,772.98,0.2249159]
[1754584941017,0.84118315,773.95,772.98,0.2249159]
[1754584941221,0.84118315,773.94,772.98,0.2249159]
[1754584941417,0.84118315,773.93,772.98,0.2249159]
[1754584941717,0.84118315,773.92,772.98,0.2249159]
[1754584941918,0.84118315,773.91,772.98,0.2249159]
[1754584942125,0.84118315,773.9,772.98,0.2249159]
[1754584942424,0.965,774.04,772.98,0.2249159]
[1754584942425,0.84118315,773.89,772.98,0.2249159]
[1754584942619,0.84118315,773.88,772.98,0.2249159]
[1754584942923,0.84118315,773.87,772.98,0.2249159]
[1754584943122,0.965,774.04,772.98,0.2249159]
[1754584943421,0.84227075,774.03,772.98,0.2249159]
[1754584943621,0.84227075,774.02,772.98,0.2249159]
[1754584943823,0.84227075,774.01,772.98,0.2249159]
[1754584944022,0.84227075,774.0,772.98,0.2249159]
[1754584944226,0.84227075,773.99,772.98,0.2249159]